fUSD/lending_fUSD_20250215
["ID","MTS","AMOUNT","RATE_DAILY","PERIOD"]
[353164765,1739617865153,-500.0,0.00011369,2]
[353164766,1739617865163,-500.0,0.00011369,2]
[353164767,1739617865172,-500.0,0.00011369,2]
[353164768,1739617865182,-542.92,0.00011369,2]
[353164769,1739617865192,-500.0,0.00011369,2]
[353164770,1739617865202,-303.38,0.00011369,2]
[353164771,1739617865211,-500.0,0.00011369,2]
[353164772,1739617865221,-500.0,0.00011369,2]
[353164773,1739617865230,-804.44,0.00011369,2]
[353164774,1739617865240,-500.0,0.00011369,2]
[353164775,1739617865250,-1007.19,0.00011369,2]
[353164776,1739617865259,-565.51,0.00011369,2]
[353164777,1739617865268,-500.0,0.00011369,2]
[353164778,1739617865277,-500.0,0.00011369,2]
[353164779,1739617865287,-795.54,0.00011369,2]
[353164780,1739617865296,-923.83,0.00011369,2]
[353164781,1739617865305,-500.0,0.00011369,2]
[353164782,1739617865314,-573.49,0.00011369,2]
[353164783,1739617865322,-500.0,0.00011369,2]
[353164784,1739617865332,-1129.06,0.00011369,2]
[353164785,1739617865341,-500.0,0.00011369,2]
[353164786,1739617865351,-933.1,0.00011369,2]
[353164787,1739617865360,-606.64,0.00011369,2]
[353164788,1739617865370,-695.45,0.00011369,2]
[353164789,1739617865379,-500.0,0.00011369,2]
[353164790,1739617865388,-500.0,0.00011369,2]
[353164791,1739617865397,-1115.69,0.00011369,2]
[353164792,1739617865406,-500.0,0.00011369,2]
[353164793,1739617865415,-290.28,0.00011369,2]
[353164794,1739617865424,-678.3,0.00011369,2]
[353164795,1739617865433,-648.47,0.00011369,2]
[353164796,1739617865442,-1205.2,0.00011369,2]
[353164797,1739617865451,-500.0,0.00011369,2]
[353164798,1739617865461,-500.0,0.00011369,2]
[353164799,1739617865471,-529.08,0.00011369,2]
[353164800,1739617865480,-546.76,0.00011369,2]
[353164801,1739617865490,-500.0,0.00011369,2]
[353164802,1739617865500,-709.98,0.00011369,2]
[353164803,1739617865509,-500.0,0.00011369,2]
[353164804,1739617865519,-1183.19,0.00011369,2]
[353164805,1739617865528,-500.0,0.00011369,2]
[353164806,1739617865537,-359.42,0.00011369,2]
[353164807,1739617865546,-500.0,0.00011369,2]
[353164808,1739617865556,-509.02,0.00011369,2]
[353164809,1739617865566,-500.0,0.00011369,2]
[353164810,1739617865576,-500.0,0.00011369,2]
[353164811,1739617865586,-500.0,0.00011369,2]
[353164812,1739617865595,-500.0,0.00011369,2]
[353164813,1739617865604,-505.22,0.00011369,2]
[353164814,1739617865613,-500.0,0.00011369,2]
[353164815,1739617865621,-822.61,0.00011369,2]
[353164816,1739617865630,-749.41,0.00011369,2]
[353164817,1739617865639,-562.51,0.00011369,2]
[353164818,1739617865648,-1232.56,0.00011369,2]
[353164819,1739617865660,-500.0,0.00011369,2]
[353164820,1739617865670,-500.0,0.00011369,2]
[353164821,1739617865679,-500.0,0.00011369,2]
[353164822,1739617865688,-1330.07,0.00011369,2]
[353164823,1739617865698,-500.0,0.00011369,2]
[353164824,1739617865707,-726.25,0.00011369,2]
[353164825,1739617865716,-500.0,0.00011369,2]
[353164826,1739617865725,-397.72,0.00011369,2]
[353164827,1739617865736,-820.31,0.00011369,2]
[353164828,1739617865745,-500.0,0.00011369,2]
[353164829,1739617865756,-564.99,0.00011369,2]
[353164830,1739617865765,-500.0,0.00011369,2]
[353164831,1739617865775,-744.0,0.00011369,2]
[353164832,1739617865784,-500.0,0.00011369,2]
[353164833,1739617865793,-500.0,0.00011369,2]
[353164834,1739617865803,-500.0,0.00011369,2]
[353164835,1739617865812,-500.0,0.00011369,2]
[353164836,1739617865821,-500.0,0.00011369,2]
[353164837,1739617865830,-500.0,0.00011369,2]
[353164838,1739617865839,-500.0,0.00011369,2]
[353164839,1739617865849,-500.0,0.00011369,2]
[353164840,1739617865858,-1199.42,0.00011369,2]
[353164841,1739617865867,-648.07,0.00011369,2]
[353164842,1739617865876,-279.62,0.00011369,2]
[353164843,1739617865885,-741.53,0.00011369,2]
[353164844,1739617865894,-500.0,0.00011369,2]
[353164845,1739617865903,-500.0,0.00011369,2]
[353164846,1739617865912,-500.0,0.00011369,2]
[353164847,1739617865921,-500.0,0.00011369,2]
[353164848,1739617865930,-272.61,0.00011369,2]
[353164849,1739617865939,-976.58,0.00011369,2]
[353164850,1739617865948,-500.0,0.00011369,2]
[353164851,1739617865957,-587.56,0.00011369,2]
[353164852,1739617865966,-676.62,0.00011369,2]
[353164853,1739617865975,-186.63,0.00011369,2]
[353164854,1739617865985,-156.87975573,0.00011369,2]
[353164855,1739617865994,-1055.85,0.00011369,2]
[353164856,1739617866003,-500.0,0.00011369,2]
[353164857,1739617866013,-1937.74080182,0.00011369,2]
[353164858,1739617866021,-4000.0,0.0001137,2]
[353164859,1739617866030,-500.83540983,0.0001138,2]
[353164860,1739617866039,-2149.01953308,0.0001138,2]
[353164861,1739617866048,-153.25625118,0.0001138,2]
[353164862,1739617866057,-268.38988024,0.00011404,2]
[353164863,1739617866066,-1000.0,0.00011433,2]
[353164864,1739617866076,-1937.74080182,0.00011433,2]
[353164865,1739617866085,-1000.0,0.00011433,2]
[353164866,1739617866095,-1000.0,0.00011433,2]
[353164867,1739617866104,-1000.0,0.00011433,2]
[353164868,1739617866114,-1000.0,0.00011433,2]
[353164869,1739617866124,-1000.0,0.00011433,2]
[353164870,1739617866133,-1000.0,0.00011433,2]
[353164871,1739617866143,-1000.0,0.00011433,2]
[353164872,1739617866152,-1000.0,0.00011433,2]
[353164873,1739617866161,-1000.0,0.00011433,2]
[353164874,1739617866170,-1012.48996988,0.00011433,2]
[353164875,1739617866179,-900.0,0.00011438,2]
[353164876,1739617866188,-900.0,0.00011438,2]
[353164877,1739617866197,-531.93434091,0.0001145,2]
[353164878,1739617866206,-1298.38,0.0001145,2]
[353164879,1739617866215,-500.0,0.00011451,2]
[353164880,1739617866224,-500.0,0.00011451,2]
[353164881,1739617866233,-500.0,0.00011451,2]
[353164882,1739617866243,-500.0,0.00011451,2]
[353164883,1739617866252,-500.0,0.00011451,2]
[353164884,1739617866261,-500.0,0.00011451,2]
[353164885,1739617866269,-500.0,0.00011451,2]
[353164886,1739617866278,-560.1,0.00011451,2]
[353164887,1739617866287,-422.96,0.00011451,2]
[353164888,1739617866296,-588.32,0.00011451,2]
[353164889,1739617866305,-500.0,0.00011451,2]
[353164890,1739617866315,-500.0,0.00011451,2]
[353164891,1739617866324,-500.0,0.00011451,2]
[353164892,1739617866333,-500.0,0.00011451,2]
[353164893,1739617866343,-455.69,0.00011451,2]
[353164894,1739617866352,-500.0,0.00011451,2]
[353164895,1739617866361,-500.0,0.00011451,2]
[353164896,1739617866370,-500.0,0.00011451,2]
[353164897,1739617866380,-500.0,0.00011451,2]
[353164898,1739617866389,-500.0,0.00011451,2]
[353164899,1739617866399,-500.0,0.00011451,2]
[353164900,1739617866408,-151.0,0.00011451,2]
[353164901,1739617866453,-151.0,0.00011451,2]
[353164902,1739617866462,-151.0,0.00011451,2]
[353164903,1739617866471,-151.0,0.00011451,2]
[353164904,1739617866480,-151.0,0.00011451,2]
[353164905,1739617866489,-151.0,0.00011451,2]
[353164906,1739617866498,-161.18732624,0.00011451,2]
[353164907,1739617866507,-584.85,0.00011451,2]
[353164908,1739617866516,-500.0,0.00011451,2]
[353164909,1739617866527,-500.0,0.00011451,2]
[353164910,1739617866537,-500.0,0.00011451,2]
[353164911,1739617866546,-500.0,0.00011451,2]
[353164912,1739617866555,-206.81,0.00011451,2]
[353164913,1739617866564,-649.87,0.00011451,2]
[353164914,1739617866573,-500.0,0.00011451,2]
[353164915,1739617866582,-230.76,0.00011451,2]
[353164916,1739617866591,-500.0,0.00011451,2]
[353164917,1739617866600,-500.0,0.00011451,2]
[353164918,1739617866609,-233.01350849,0.00011451,2]
[353164919,1739617866618,-500.0,0.00011451,2]
[353164920,1739617866626,-500.0,0.00011451,2]
[353164921,1739617866635,-500.0,0.00011451,2]
[353164922,1739617866644,-500.0,0.00011451,2]
[353164923,1739617866657,-500.0,0.00011451,2]
[353164924,1739617866666,-500.0,0.00011451,2]
[353164925,1739617866675,-500.0,0.00011451,2]
[353164926,1739617866684,-500.0,0.00011451,2]
[353164927,1739617866693,-500.0,0.00011451,2]
[353164928,1739617866703,-500.0,0.00011451,2]
[353164929,1739617866712,-500.0,0.00011451,2]
[353164930,1739617866721,-589.18238585,0.00011451,2]
[353164931,1739617866732,-500.0,0.00011451,2]
[353164932,1739617866742,-500.0,0.00011451,2]
[353164933,1739617866751,-523.62,0.00011451,2]
[353164934,1739617866761,-513.09,0.00011451,2]
[353164935,1739617866770,-434.63,0.00011451,2]
[353164936,1739617866779,-579.5,0.00011451,2]
[353164937,1739617866788,-500.0,0.00011451,2]
[353164938,1739617866798,-500.0,0.00011451,2]
[353164939,1739617866807,-500.0,0.00011451,2]
[353164940,1739617866817,-425.66,0.00011451,2]
[353164941,1739617866827,-500.0,0.00011451,2]
[353164942,1739617866836,-523.59,0.00011451,2]
[353164943,1739617866846,-210.13,0.00011451,2]
[353164944,1739617866855,-500.0,0.00011451,2]
[353164945,1739617866864,-500.0,0.00011451,2]
[353164946,1739617866873,-500.0,0.00011451,2]
[353164947,1739617866882,-500.0,0.00011451,2]
[353164948,1739617866891,-500.0,0.00011451,2]
[353164949,1739617866900,-631.97,0.00011451,2]
[353164950,1739617866909,-1272.75,0.00011451,2]
[353164951,1739617866918,-271.37,0.00011451,2]
[353164952,1739617866927,-500.0,0.00011451,2]
[353164953,1739617866936,-500.0,0.00011451,2]
[353164954,1739617866945,-500.0,0.00011451,2]
[353164955,1739617866954,-691.99,0.00011451,2]
[353164956,1739617866964,-506.11,0.00011451,2]
[353164957,1739617866974,-810.44,0.00011451,2]
[353164958,1739617866984,-837.5,0.00011451,2]
[353164959,1739617866994,-500.0,0.00011451,2]
[353164960,1739617867003,-772.95,0.00011451,2]
[353164961,1739617867012,-500.0,0.00011451,2]
[353164962,1739617867021,-1000.0,0.00011451,2]
[353164963,1739617867031,-878.85,0.00011451,2]
[353164964,1739617867040,-500.0,0.00011451,2]
[353164965,1739617867049,-388.36,0.00011451,2]
[353164966,1739617867057,-500.0,0.00011451,2]
[353164967,1739617867066,-500.0,0.00011451,2]
[353164968,1739617867076,-560.5,0.00011451,2]
[353164969,1739617867084,-500.0,0.00011451,2]
[353164970,1739617867093,-542.92,0.00011451,2]
[353164971,1739617867102,-163.48,0.00011451,2]
[353164972,1739617867110,-500.0,0.00011451,2]
[353164973,1739617867120,-500.0,0.00011451,2]
[353164974,1739617867129,-565.51,0.00011451,2]
[353164975,1739617867138,-500.0,0.00011451,2]
[353164976,1739617867147,-795.54,0.00011451,2]
[353164977,1739617867156,-268.28,0.00011451,2]
[353164978,1739617867165,-695.45,0.00011451,2]
[353164979,1739617867174,-500.0,0.00011451,2]
[353164980,1739617867183,-500.0,0.00011451,2]
[353164981,1739617867193,-500.0,0.00011451,2]
[353164982,1739617867202,-648.47,0.00011451,2]
[353164983,1739617867212,-1205.2,0.00011451,2]
[353164984,1739617867221,-500.0,0.00011451,2]
[353164985,1739617867229,-500.0,0.00011451,2]
[353164986,1739617867238,-359.99,0.00011451,2]
[353164987,1739617867247,-709.98,0.00011451,2]
[353164988,1739617867256,-500.0,0.00011451,2]
[353164989,1739617867265,-500.0,0.00011451,2]
[353164990,1739617867274,-500.0,0.00011451,2]
[353164991,1739617867284,-500.0,0.00011451,2]
[353164992,1739617867293,-610.13,0.00011451,2]
[353164993,1739617867301,-500.0,0.00011451,2]
[353164994,1739617867310,-562.51,0.00011451,2]
[353164995,1739617867319,-1232.56,0.00011451,2]
[353164996,1739617867328,-500.0,0.00011451,2]
[353164997,1739617867337,-500.0,0.00011451,2]
[353164998,1739617867346,-637.37,0.00011451,2]
[353164999,1739617867355,-500.0,0.00011451,2]
[353165000,1739617867364,-820.31,0.00011451,2]
[353165001,1739617867373,-564.99,0.00011451,2]
[353165002,1739617867382,-500.0,0.00011451,2]
[353165003,1739617867390,-500.0,0.00011451,2]
[353165004,1739617867399,-500.0,0.00011451,2]
[353165005,1739617867410,-500.0,0.00011451,2]
[353165006,1739617867418,-500.0,0.00011451,2]
[353165007,1739617867428,-500.0,0.00011451,2]
[353165008,1739617867437,-500.0,0.00011451,2]
[353165009,1739617867446,-500.0,0.00011451,2]
[353165010,1739617867456,-500.0,0.00011451,2]
[353165011,1739617867465,-676.62,0.00011451,2]
[353165012,1739617867474,-1055.85,0.00011451,2]
[353165013,1739617867483,-500.0,0.00011452,2]
[353165014,1739617867492,-500.0,0.00011452,2]
[353165015,1739617867501,-500.0,0.00011452,2]
[353165016,1739617867511,-500.0,0.00011452,2]
[353165017,1739617867521,-280.39584409,0.00011452,2]
[353165018,1739617867530,-380.88,0.00011452,2]
[353165019,1739617867539,-500.0,0.00011452,2]
[353165020,1739617867550,-500.0,0.00011452,2]
[353165021,1739617867559,-500.0,0.00011452,2]
[353165022,1739617867568,-500.0,0.00011452,2]
[353165023,1739617867577,-500.0,0.00011452,2]
[353165024,1739617867586,-500.0,0.00011452,2]
[353165025,1739617867595,-500.0,0.00011452,2]
[353165026,1739617867604,-313.23,0.00011452,2]
[353165027,1739617867613,-500.0,0.00011452,2]
[353165028,1739617867623,-500.0,0.00011452,2]
[353165029,1739617867631,-500.0,0.00011452,2]
[353165030,1739617867640,-500.0,0.00011452,2]
[353165031,1739617867651,-500.0,0.00011452,2]
[353165032,1739617867663,-500.0,0.00011452,2]
[353165033,1739617867672,-500.0,0.00011452,2]
[353165034,1739617867681,-500.0,0.00011452,2]
[353165035,1739617867690,-560.83,0.00011452,2]
[353165036,1739617867701,-500.0,0.00011452,2]
[353165037,1739617867709,-500.0,0.00011452,2]
[353165038,1739617867718,-500.0,0.00011452,2]
[353165039,1739617867727,-500.0,0.00011452,2]
[353165040,1739617867738,-500.0,0.00011452,2]
[353165041,1739617867747,-213.681323,0.00011452,2]
[353165042,1739617867756,-576.82,0.00011452,2]
[353165043,1739617867765,-729.15,0.00011452,2]
[353165044,1739617867773,-207.566223,0.00011452,2]
[353165045,1739617867782,-549.22,0.00011452,2]
[353165046,1739617867791,-998.55,0.00011452,2]
[353165047,1739617867800,-502.87,0.00011452,2]
[353165048,1739617867810,-500.0,0.00011452,2]
[353165049,1739617867818,-785.49,0.00011452,2]
[353165050,1739617867828,-672.94,0.00011452,2]
[353165051,1739617867837,-500.0,0.00011452,2]
[353165052,1739617867846,-500.0,0.00011452,2]
[353165053,1739617867855,-963.46,0.00011452,2]
[353165054,1739617867864,-500.0,0.00011452,2]
[353165055,1739617867873,-1872.53,0.00011452,2]
[353165056,1739617867882,-1072.6,0.00011452,2]
[353165057,1739617867892,-2648.91,0.00011452,2]
[353165058,1739617867901,-500.0,0.00011452,2]
[353165059,1739617867913,-804.44,0.00011452,2]
[353165060,1739617867921,-1007.19,0.00011452,2]
[353165061,1739617867930,-500.0,0.00011452,2]
[353165062,1739617867940,-923.83,0.00011452,2]
[353165063,1739617867950,-573.49,0.00011452,2]
[353165064,1739617867959,-500.0,0.00011452,2]
[353165065,1739617867968,-1129.06,0.00011452,2]
[353165066,1739617867977,-500.0,0.00011452,2]
[353165067,1739617867987,-933.1,0.00011452,2]
[353165068,1739617867996,-1115.69,0.00011452,2]
[353165069,1739617868005,-678.3,0.00011452,2]
[353165070,1739617868014,-529.08,0.00011452,2]
[353165071,1739617868023,-546.76,0.00011452,2]
[353165072,1739617868033,-1183.19,0.00011452,2]
[353165073,1739617868042,-509.02,0.00011452,2]
[353165074,1739617868052,-500.0,0.00011452,2]
[353165075,1739617868061,-505.22,0.00011452,2]
[353165076,1739617868070,-500.0,0.00011452,2]
[353165077,1739617868079,-822.61,0.00011452,2]
[353165078,1739617868088,-749.41,0.00011452,2]
[353165079,1739617868098,-1330.07,0.00011452,2]
[353165080,1739617868107,-726.25,0.00011452,2]
[353165081,1739617868116,-500.0,0.00011452,2]
[353165082,1739617868125,-500.0,0.00011452,2]
[353165083,1739617868134,-744.0,0.00011452,2]
[353165084,1739617868143,-500.0,0.00011452,2]
[353165085,1739617868152,-500.0,0.00011452,2]
[353165086,1739617868162,-500.0,0.00011452,2]
[353165087,1739617868171,-1199.42,0.00011452,2]
[353165088,1739617868182,-741.53,0.00011452,2]
[353165089,1739617868192,-500.0,0.00011452,2]
[353165090,1739617868202,-500.0,0.00011452,2]
[353165091,1739617868212,-976.58,0.00011452,2]
[353165092,1739617868221,-500.0,0.00011452,2]
[353165093,1739617868231,-15684.0,0.00011452,2]
[353165094,1739617868240,-251253.0,0.00011452,2]
[353165095,1739617868249,-500.0,0.00011473,2]
[353165096,1739617868258,-500.58669031,0.00011473,2]
[353165097,1739617868267,-179.98411484,0.00011473,2]
[353165098,1739617868277,-207.8428045,0.00011473,2]
[353165099,1739617868286,-152.80183763,0.00011473,2]
[353165100,1739617868295,-161.86186734,0.00011473,2]
[353165101,1739617868305,-500.0,0.00011473,2]
[353165102,1739617868314,-163.85045076,0.00011473,2]
[353165103,1739617868323,-152.48894411,0.00011473,2]
[353165104,1739617868332,-152.46359257,0.00011473,2]
[353165105,1739617868341,-513.09,0.00011479,2]
[353165106,1739617868350,-513.09,0.00011479,2]
[353165107,1739617868360,-513.09,0.00011479,2]
[353165108,1739617868370,-513.09,0.00011479,2]
[353165109,1739617868379,-513.09,0.00011479,2]
[353165110,1739617868389,-513.09,0.00011479,2]
[353165111,1739617868398,-513.09,0.00011479,2]
[353165112,1739617868407,-513.09,0.00011479,2]
[353165113,1739617868416,-513.09,0.00011479,2]
[353165114,1739617868426,-513.09,0.00011479,2]
[353165115,1739617868435,-513.09,0.00011479,2]
[353165116,1739617868444,-513.09,0.00011479,2]
[353165117,1739617868453,-513.09,0.00011479,2]
[353165118,1739617868462,-513.09,0.00011479,2]
[353165119,1739617868472,-513.09,0.00011479,2]
[353165120,1739617868481,-513.09,0.00011479,2]
[353165121,1739617868490,-513.29105894,0.00011479,2]
[353165122,1739617868499,-1298.38,0.00011479,2]
[353165123,1739617868508,-1298.38,0.00011479,2]
[353165124,1739617868518,-1298.38,0.00011479,2]
[353165125,1739617868528,-1298.38,0.00011479,2]
[353165126,1739617868537,-1298.38,0.00011479,2]
[353165127,1739617868547,-1298.38,0.00011479,2]
[353165128,1739617868557,-1298.38,0.00011479,2]
[353165129,1739617868566,-1298.38,0.00011479,2]
[353165130,1739617868576,-1298.38,0.00011479,2]
[353165131,1739617868586,-1298.38,0.00011479,2]
[353165132,1739617868596,-1298.38,0.00011479,2]
[353165133,1739617868607,-1298.38,0.00011479,2]
[353165134,1739617868617,-1298.38,0.00011479,2]
[353165135,1739617868627,-1298.38,0.00011479,2]
[353165136,1739617868636,-768.07,0.00011479,2]
[353165137,1739617868645,-768.07,0.00011479,2]
[353165138,1739617868658,-768.07,0.00011479,2]
[353165139,1739617868667,-768.07,0.00011479,2]
[353165140,1739617868676,-768.07,0.00011479,2]
[353165141,1739617868686,-768.07,0.00011479,2]
[353165142,1739617868699,-768.07,0.00011479,2]
[353165143,1739617868708,-768.07,0.00011479,2]
[353165144,1739617868718,-768.07,0.00011479,2]
[353165145,1739617868728,-768.07,0.00011479,2]
[353165146,1739617868739,-768.07,0.00011479,2]
[353165147,1739617868749,-768.07,0.00011479,2]
[353165148,1739617868759,-768.07,0.00011479,2]
[353165149,1739617868769,-768.07,0.00011479,2]
[353165150,1739617868779,-300.0,0.00011479,2]
[353165151,1739617868788,-300.0,0.00011479,2]
[353165152,1739617868797,-256.77152251,0.00011479,2]
[353165153,1739617868806,-431922.1206677,0.0001148,2]
[353165154,1739617869021,-500.0,0.0001104,2]
[353165155,1739617869032,-51.275395,0.0001148,2]
[353165156,1739617869044,-397.87610775,0.0001148,2]
[353165157,1739617869056,-2359.2578844,0.0001148,2]
[353165163,1739618214779,1462.13005991,0.00020698,120]
[353165164,1739618224284,-1000.0,0.00016438,60]
[353165165,1739618224310,-1000.0,0.00016438,60]
[353165166,1739618224336,-1000.0,0.00016438,60]
[353165167,1739618224360,-1000.0,0.00016438,60]
[353165168,1739618224385,-1000.0,0.00016438,60]
[353165169,1739618224407,-1000.0,0.00016438,60]
[353165170,1739618224432,-1000.0,0.00016438,60]
[353165171,1739618224456,-1000.0,0.00016438,60]
[353165172,1739618224481,-1000.0,0.00016438,60]
[353165173,1739618224506,-1000.0,0.00016438,60]
[353165174,1739618224531,-1127.71628893,0.00016438,60]
[353165175,1739618224592,-1905.93,0.00020027,120]
[353165176,1739618224616,-1905.93,0.00020027,120]
[353165177,1739618224640,-1905.93,0.00020027,120]
[353165178,1739618224664,-1905.93,0.00020027,120]
[353165179,1739618224688,-1905.93,0.00020027,120]
[353165180,1739618224711,-1905.93,0.00020027,120]
[353165181,1739618224735,-1905.93,0.00020027,120]
[353165182,1739618224758,-1905.93,0.00020027,120]
[353165183,1739618224785,-1905.93,0.00020027,120]
[353165184,1739618224811,-1905.93,0.00020027,120]
[353165185,1739618225068,-1905.93,0.00020027,120]
[353165186,1739618225094,-1905.93,0.00020027,120]
[353165187,1739618225120,-1905.93,0.00020027,120]
[353165188,1739618225145,-1905.93,0.00020027,120]
[353165189,1739618225170,-1905.93,0.00020027,120]
[353165190,1739618225194,-1905.93,0.00020027,120]
[353165191,1739618225219,-1905.93,0.00020027,120]
[353165192,1739618225244,-1905.93,0.00020027,120]
[353165193,1739618225270,-1905.93,0.00020027,120]
[353165194,1739618225295,-1905.93,0.00020027,120]
[353165195,1739618225323,-1905.93,0.00020027,120]
[353165196,1739618225350,-1905.93,0.00020027,120]
[353165197,1739618225376,-1905.93,0.00020027,120]
[353165198,1739618225401,-1906.1078722,0.00020027,120]
[353165199,1739618225428,-150.0,0.00020083,120]
[353165200,1739618225455,-1333.0,0.00020329,120]
[353165201,1739618225482,-150.0,0.00020452,120]
[353165202,1739618225508,-150.0,0.00020479,120]
[353165203,1739618225536,-150.0,0.0002052,120]
[353165204,1739618225566,-222.0,0.00020644,120]
[353165205,1739618225591,-150.0,0.00020646,120]
[353165206,1739618225617,-234.0,0.00020695,120]
[353165207,1739618225656,-422.9,0.00020816,60]
[353165208,1739618225681,-150.0,0.0002094,120]
[353165209,1739618225707,-150.0,0.00020981,120]
[353165210,1739618225733,-1000.0,0.00021,120]
[353165211,1739618225759,-150.0,0.0002121,120]
[353165212,1739618225789,-150.0,0.00021404,120]
[353165213,1739618225820,-150.0,0.00021582,120]
[353165214,1739618225849,-1000.0,0.00021917,120]
[353165215,1739618225876,-947.01492545,0.00021917,120]
[353165216,1739618225904,-2700.0,0.00022,120]
[353165217,1739618225929,-500.0,0.00022,120]
[353165218,1739618225955,-285.61920482,0.00022,120]
[353165219,1739618225979,-421.61544854,0.00022,120]
[353165220,1739618226004,-10000.0,0.00022,120]
[353165221,1739618226030,-150.0,0.00022026,120]
[353165222,1739618226056,-150.0,0.00022118,120]
[353165223,1739618226082,-150.0,0.00022124,120]
[353165224,1739618226108,-282.187385,0.00022194,120]
[353165225,1739618226133,-2000.0,0.00022194,120]
[353165226,1739618226158,-214.17215,0.00022194,120]
[353165227,1739618226183,-200.0,0.00022194,120]
[353165228,1739618226209,-150.0,0.00022354,120]
[353165229,1739618226235,-150.0,0.00022377,120]
[353165230,1739618226260,-150.0,0.0002243,120]
[353165231,1739618226287,-150.0,0.00022492,120]
[353165232,1739618226314,-150.0,0.00022505,120]
[353165233,1739618226341,-150.0,0.00022935,120]
[353165234,1739618226365,-1017.68104627,0.00023,120]
[353165235,1739618226391,-500.0,0.00023,120]
[353165236,1739618226416,-286.79984183,0.00023,120]
[353165237,1739618226441,-172.92,0.00023,120]
[353165238,1739618226468,-169910.95616396,0.00023,120]
[353165239,1739618226495,-1922.86962106,0.0002301,120]
[353165240,1739618226524,-150.0,0.00023122,120]
[353165241,1739618226550,-3295.25,0.00023287,120]
[353165242,1739618226575,-3295.25,0.00023287,120]
[353165243,1739618226600,-3295.25,0.00023287,120]
[353165244,1739618226624,-3295.25,0.00023287,120]
[353165245,1739618226649,-3295.25,0.00023287,120]
[353165246,1739618226674,-3295.25,0.00023287,120]
[353165247,1739618226700,-3295.25,0.00023287,120]
[353165248,1739618226725,-3295.25,0.00023287,120]
[353165249,1739618226750,-3295.25,0.00023287,120]
[353165250,1739618226777,-3295.25,0.00023287,120]
[353165251,1739618226807,-3295.25,0.00023287,120]
[353165252,1739618226833,-3295.25,0.00023287,120]
[353165253,1739618226858,-3295.25,0.00023287,120]
[353165254,1739618226883,-3295.25,0.00023287,120]
[353165255,1739618226908,-3295.25,0.00023287,120]
[353165256,1739618226935,-3295.25,0.00023287,120]
[353165257,1739618226959,-3295.25,0.00023287,120]
[353165258,1739618226984,-3295.25,0.00023287,120]
[353165259,1739618227009,-3295.25,0.00023287,120]
[353165260,1739618227036,-3295.25,0.00023287,120]
[353165261,1739618227061,-3295.25,0.00023287,120]
[353165262,1739618227085,-3295.25,0.00023287,120]
[353165263,1739618227110,-3295.25,0.00023287,120]
[353165264,1739618227133,-3295.36578371,0.00023287,120]
[353165265,1739618227159,-2000.0,0.00023694,120]
[353165266,1739618227184,-200.0,0.00023694,120]
[353165267,1739618227217,-150.0,0.00023833,120]
[353165268,1739618227243,-500.0,0.00024,120]
[353165269,1739618227268,-571.0,0.00024,120]